bitfinex-derivatives/quotes_BTCF0:USTF0_20250620
["timestamp","ask_amount","ask_price","bid_price","bid_amount"]
[1750406497786,2.76990525,105890.0,105880.0,0.2902878]
[1750406498389,2.76982525,105890.0,105880.0,0.2902878]
[1750406499295,2.02714525,105890.0,105880.0,0.2902878]
[1750406499495,2.76982525,105890.0,105880.0,0.2902878]
[1750406499796,2.76982525,105890.0,105880.0,0.2430709]
[1750406501690,2.52459847,105890.0,105880.0,0.2430709]
[1750406501995,2.76982525,105890.0,105880.0,0.2430709]
[1750406504099,2.76970525,105890.0,105880.0,0.2430709]
[1750406508903,3.13050525,105890.0,105880.0,0.2430709]
[1750406509504,2.38794525,105890.0,105880.0,0.2430709]
[1750406509798,1.46128633,105890.0,105880.0,0.47908262]
[1750406510003,1.46128633,105890.0,105880.0,0.57308262]
[1750406510004,1.10048633,105890.0,105880.0,0.57308262]
[1750406510197,1.10008633,105890.0,105880.0,0.57308262]
[1750406510392,1.10048633,105890.0,105880.0,0.57308262]
[1750406511104,0.60048633,105890.0,105880.0,0.57308262]
[1750406511507,1.19760633,105890.0,105880.0,0.32785584]
[1750406512600,1.22810633,105890.0,105880.0,0.32785584]
[1750406512907,1.47333311,105890.0,105880.0,0.32785584]
[1750406513204,1.22810633,105890.0,105880.0,0.32785584]
[1750406514502,1.22810633,105890.0,105880.0,0.79865584]
[1750406514503,0.00755971,105890.0,105880.0,0.79865584]
[1750406514804,0.9578,105910.0,105900.0,0.1888378]
[1750406515004,0.9578,105910.0,105900.0,0.43406458]
[1750406515200,0.60602678,105910.0,105900.0,0.2843378]
[1750406515398,1.42444678,105910.0,105900.0,0.2204378]
[1750406515593,1.26882678,105910.0,105900.0,0.2204378]
[1750406515806,0.63862678,105910.0,105900.0,0.2204378]
[1750406515991,0.9904,105910.0,105900.0,0.2520378]
[1750406516196,0.00950855,105910.0,105900.0,0.85806458]
[1750406516397,0.00950855,105920.0,105910.0,0.18882]
[1750406516600,0.74915227,105940.0,105910.0,0.74872788]
[1750406516601,1.19450286,105940.0,105910.0,0.74872788]
[1750406516798,1.06311854,105940.0,105930.0,0.1887843]
[1750406516998,1.40269445,105940.0,105930.0,0.1887843]
[1750406517198,1.24532795,105940.0,105930.0,0.2203843]
[1750406517507,1.24568795,105940.0,105930.0,0.2203843]
[1750406517700,1.25068795,105940.0,105930.0,0.2203843]
[1750406517901,1.43945445,105940.0,105930.0,0.2203843]
[1750406518406,1.54717234,105940.0,105930.0,0.2203843]
[1750406519106,1.54717234,105940.0,105930.0,0.1887843]
[1750406519309,1.54917234,105940.0,105930.0,0.1887843]
[1750406519509,1.69917234,105940.0,105930.0,0.1887843]
[1750406519808,1.54917234,105940.0,105930.0,0.1887843]
[1750406520308,1.80394556,105940.0,105930.0,0.1887843]
[1750406520510,2.04917234,105940.0,105930.0,0.1887843]
[1750406521415,2.04901234,105940.0,105930.0,0.1887843]
[1750406521707,0.1888022,105920.0,105910.0,0.2832078]
[1750406521901,1.47866687,105920.0,105910.0,0.2832078]
[1750406522097,1.2208222,105920.0,105910.0,0.2832078]
[1750406522312,1.46604898,105920.0,105910.0,0.2832078]
[1750406522711,1.45604898,105920.0,105910.0,0.2832078]
[1750406523103,1.95644898,105920.0,105910.0,0.2832078]
[1750406524010,1.95744898,105920.0,105910.0,0.2832078]
[1750406524203,2.05185178,105920.0,105910.0,0.18882]
[1750406524398,2.12896967,105920.0,105910.0,0.18882]
[1750406524610,1.55185178,105920.0,105910.0,0.18882]
[1750406524807,1.2594233,105920.0,105910.0,0.18882]
[1750406525013,1.50465008,105920.0,105910.0,0.18882]
[1750406525706,1.2594233,105920.0,105910.0,0.18882]
[1750406525910,1.50465008,105920.0,105910.0,0.18882]
[1750406526113,1.86537008,105920.0,105910.0,0.18882]
[1750406526612,1.94248797,105920.0,105910.0,0.18882]
[1750406526813,1.86537008,105920.0,105910.0,0.18882]
[1750406528608,1.6201433,105920.0,105910.0,0.18882]
[1750406528804,1.86537008,105920.0,105910.0,0.18882]
[1750406529708,1.95248797,105920.0,105910.0,0.18882]
[1750406530413,1.94248797,105920.0,105910.0,0.18882]
[1750406533709,1.95248797,105920.0,105910.0,0.18882]
[1750406534309,2.02768862,105920.0,105910.0,0.18882]
[1750406534717,2.52768862,105920.0,105910.0,0.18882]
[1750406535622,2.28246184,105920.0,105910.0,0.18882]
[1750406535824,2.51768862,105920.0,105910.0,0.18882]
[1750406536613,2.27246184,105920.0,105910.0,0.18882]
[1750406536814,2.51768862,105920.0,105910.0,0.18882]
[1750406537215,2.52768862,105920.0,105910.0,0.18882]
[1750406538718,2.40558752,105920.0,105910.0,0.18882]
[1750406538925,2.40558752,105920.0,105910.0,0.25022]
[1750406539221,2.40518752,105920.0,105910.0,0.25022]
[1750406539416,2.40558752,105920.0,105910.0,0.25022]
[1750406539625,1.90558752,105920.0,105910.0,0.25022]
[1750406539919,1.93648752,105920.0,105910.0,0.25022]
[1750406540126,1.96928752,105920.0,105910.0,0.25022]
[1750406540315,1.18424532,105920.0,105910.0,0.25022]
[1750406540522,1.47103854,105920.0,105910.0,0.25022]
[1750406540721,1.65984074,105920.0,105910.0,0.25022]
[1750406540922,1.66024074,105920.0,105910.0,0.25022]
[1750406541523,1.47143854,105920.0,105910.0,0.25022]
[1750406541727,1.66024074,105920.0,105910.0,0.28262]
[1750406542029,1.66024074,105920.0,105910.0,0.28679407]
[1750406542528,1.90538752,105920.0,105910.0,0.28679407]
[1750406543127,1.90538752,105920.0,105910.0,0.28262]
[1750406543128,1.23414687,105920.0,105910.0,0.28262]
[1750406543327,1.12078584,105920.0,105910.0,0.28262]
[1750406543523,0.87555906,105920.0,105910.0,0.28262]
[1750406543729,1.47155906,105920.0,105910.0,0.52784678]
[1750406544126,0.87555906,105920.0,105910.0,0.28262]
[1750406544326,0.87555906,105920.0,105910.0,0.52784678]
[1750406544530,0.87555906,105920.0,105910.0,0.28262]
[1750406546733,0.98892009,105920.0,105910.0,0.21932]
[1750406546934,1.40752446,105920.0,105910.0,0.21932]
[1750406547128,1.14324467,105920.0,105910.0,0.21932]
[1750406547536,1.21873687,105920.0,105910.0,0.21932]
[1750406548228,1.16231229,105920.0,105910.0,0.21932]
[1750406548429,1.40753907,105920.0,105910.0,0.18882]
[1750406550635,1.40753907,105920.0,105910.0,0.22202]
[1750406551334,1.16231229,105920.0,105910.0,0.22202]
[1750406551637,1.40753907,105920.0,105910.0,0.22202]
[1750406552333,1.16231229,105920.0,105910.0,0.18882]
[1750406552533,1.40753907,105920.0,105910.0,0.18882]
[1750406553132,1.33042118,105920.0,105910.0,0.18882]
[1750406554239,1.14161898,105920.0,105910.0,0.18882]
[1750406554540,1.4916722,105920.0,105910.0,0.18882]
[1750406554740,1.4916722,105920.0,105910.0,0.22142]
[1750406554932,1.4920722,105920.0,105910.0,0.22142]
[1750406555441,0.8963922,105920.0,105910.0,0.46664678]
[1750406555640,1.4597522,105920.0,105910.0,0.46664678]
[1750406555937,0.7984922,105920.0,105910.0,0.49684678]
[1750406556136,0.7980922,105920.0,105910.0,0.49684678]
[1750406556342,0.7984922,105920.0,105910.0,0.25579407]
[1750406556639,0.4376922,105920.0,105910.0,0.25579407]
[1750406556939,0.68291898,105920.0,105910.0,0.25579407]
[1750406557139,0.3944,105920.0,105910.0,0.25579407]
[1750406557330,0.63962678,105920.0,105910.0,0.25162]
[1750406557528,0.66992678,105920.0,105910.0,0.25162]
[1750406557832,0.4247,105920.0,105910.0,0.25162]
[1750406558028,0.74548875,105920.0,105910.0,0.25162]
[1750406559341,0.74548875,105920.0,105910.0,0.49684678]
[1750406559834,0.07696197,105920.0,105910.0,0.49684678]
[1750406560039,0.001,105920.0,105910.0,0.81684678]
[1750406560235,0.07695484,105920.0,105910.0,0.59684678]
[1750406560437,0.07695484,105920.0,105910.0,0.85102085]
[1750406560639,0.07655484,105920.0,105910.0,0.85102085]
[1750406560837,0.07695484,105920.0,105910.0,0.59102085]
[1750406561132,0.07695484,105920.0,105910.0,0.50102085]
[1750406561338,0.43775484,105920.0,105910.0,0.25162]
[1750406561538,0.43775484,105920.0,105910.0,0.49684678]
[1750406562842,0.43775484,105920.0,105910.0,0.25162]
[1750406563144,0.43775484,105920.0,105910.0,0.49684678]
[1750406564144,0.43775484,105920.0,105910.0,0.25162]
[1750406564339,0.43775484,105920.0,105910.0,0.49684678]
[1750406566241,0.07655484,105920.0,105910.0,1.21764678]
[1750406566438,0.0014,105920.0,105910.0,1.22182085]
[1750406566640,0.001,105920.0,105910.0,1.22182085]
[1750406566838,0.0014,105920.0,105910.0,0.86182085]
[1750406567546,0.0014,105920.0,105910.0,1.17182085]
[1750406568038,0.0014,105920.0,105910.0,0.86182085]
[1750406568248,0.0014,105920.0,105910.0,0.89182085]
[1750406570345,0.0014,105920.0,105910.0,0.64659407]
[1750406570553,0.0014,105920.0,105910.0,0.88764678]
[1750406571546,0.05798891,105920.0,105910.0,0.88764678]
[1750406571843,0.05798891,105920.0,105910.0,0.85764678]
[1750406572237,0.05798891,105920.0,105910.0,1.16764678]
[1750406572433,0.05798891,105920.0,105910.0,0.85764678]
[1750406573444,0.05798891,105920.0,105910.0,0.86182085]
[1750406575843,0.05798891,105920.0,105910.0,1.20182085]
[1750406576044,0.05798891,105920.0,105910.0,0.86182085]
[1750406578254,0.05758891,105920.0,105910.0,1.17182085]
[1750406578452,0.05758891,105920.0,105910.0,1.20182085]
[1750406578657,0.05798891,105920.0,105910.0,0.85764678]
[1750406579152,0.05798891,105920.0,105910.0,1.22764678]
[1750406579550,0.07555484,105930.0,105920.0,0.1888022]
[1750406579748,0.07555484,105930.0,105920.0,0.89362898]
[1750406580150,1.30420795,105940.0,105930.0,0.1887844]
[1750406580151,1.37976279,105940.0,105930.0,0.1887844]
[1750406580455,1.13533601,105940.0,105930.0,0.1887844]
[1750406580752,0.54057617,105940.0,105930.0,0.43401118]
[1750406580948,0.54057617,105940.0,105930.0,0.49971118]
[1750406581149,0.72854277,105940.0,105930.0,0.2217844]
[1750406581350,0.72994277,105940.0,105930.0,0.2217844]
[1750406581656,0.72994277,105940.0,105930.0,0.1887844]
[1750406581857,0.54117617,105940.0,105930.0,0.1887844]
[1750406583351,0.54317617,105940.0,105930.0,0.1887844]
[1750406584961,0.54317617,105940.0,105930.0,0.43401118]
[1750406585959,0.54317617,105940.0,105930.0,0.1887844]
[1750406588767,0.54317617,105940.0,105930.0,0.43401118]
[1750406588965,0.54317617,105940.0,105930.0,0.49601118]
[1750406589671,0.54277617,105940.0,105930.0,0.49601118]
[1750406589857,0.54317617,105940.0,105930.0,0.49601118]
[1750406590266,0.54317617,105940.0,105930.0,0.2507844]
[1750406590763,0.54317617,105940.0,105930.0,0.49601118]
[1750406591465,0.51277617,105940.0,105930.0,0.49601118]
[1750406592463,0.47977617,105940.0,105930.0,0.49601118]
[1750406593368,0.47977617,105940.0,105930.0,0.43401118]
[1750406593565,0.51007617,105940.0,105930.0,0.43401118]
[1750406594464,0.51007617,105940.0,105930.0,0.49531118]
[1750406595173,0.51007617,105940.0,105930.0,0.2500844]
[1750406595466,0.51007617,105940.0,105930.0,0.49531118]
[1750406597565,0.51007617,105940.0,105930.0,0.46481118]
[1750406597773,0.51007617,105940.0,105930.0,0.2195844]
[1750406597963,0.51007617,105940.0,105930.0,0.43401118]
[1750406601971,0.51007617,105940.0,105930.0,0.2511844]
[1750406602368,0.51007617,105940.0,105930.0,0.49641118]
[1750406603967,0.51007617,105940.0,105930.0,0.62763009]
[1750406603968,0.08897617,105940.0,105930.0,0.62763009]
[1750406604177,0.08897617,105940.0,105930.0,1.45808365]
[1750406604178,0.08857617,105940.0,105930.0,1.45808365]
[1750406604365,0.07014566,105940.0,105930.0,0.96763009]
[1750406604566,0.06974566,105940.0,105930.0,1.45808365]
[1750406604763,0.07014566,105940.0,105930.0,2.22208365]
[1750406605264,0.07014566,105940.0,105930.0,1.73163009]
[1750406605465,0.076435,105950.0,105940.0,0.1887666]
[1750406605673,0.001,105950.0,105940.0,0.6419666]
[1750406605874,0.0014,105950.0,105940.0,0.6419666]
[1750406606179,0.0014,105950.0,105940.0,0.2811666]
[1750406606474,0.0014,105950.0,105940.0,1.21719338]
[1750406606680,0.0014,105950.0,105940.0,0.6419666]
[1750406607080,0.0014,105950.0,105940.0,1.21719338]
[1750406607269,0.0014,105950.0,105940.0,0.88719338]
[1750406607469,0.0014,105950.0,105940.0,0.6419666]
[1750406607778,0.0014,105950.0,105940.0,0.88719338]
[1750406608476,0.0014,105950.0,105940.0,1.24719338]
[1750406608674,0.0014,105950.0,105940.0,0.88719338]
[1750406609084,0.0014,105950.0,105940.0,0.9819666]
[1750406609275,0.0014,105950.0,105940.0,0.88719338]
[1750406610178,0.001,105950.0,105940.0,0.88719338]
[1750406610477,0.0014,105950.0,105940.0,1.20719338]
[1750406612571,0.0014,105950.0,105940.0,1.26719338]
[1750406612776,0.0014,105950.0,105940.0,0.88719338]
[1750406613276,0.0014,105950.0,105940.0,1.26719338]
[1750406614288,0.0014,105950.0,105940.0,0.88719338]
[1750406614981,0.0014,105950.0,105940.0,1.24719338]
[1750406615377,0.0331,105960.0,105950.0,0.1887488]
[1750406615577,0.0331,105960.0,105950.0,0.8672688]
[1750406615777,0.0331,105960.0,105950.0,1.11249558]
[1750406616680,0.0331,105960.0,105950.0,0.8672688]
[1750406616882,0.0331,105960.0,105950.0,1.11249558]
[1750406617081,0.0331,105960.0,105950.0,0.8672688]
[1750406617279,0.0331,105960.0,105950.0,1.11249558]
[1750406617480,0.0331,105960.0,105950.0,1.43249558]
[1750406617980,0.49890916,105970.0,105960.0,0.188731]
[1750406617981,0.57602705,105970.0,105960.0,0.188731]
[1750406618283,0.60742705,105970.0,105960.0,0.42474952]
[1750406618669,0.53191789,105970.0,105960.0,0.42474952]
[1750406618874,0.14001789,105970.0,105960.0,0.42474952]
[1750406619171,0.14001789,105970.0,105960.0,0.27552274]
[1750406619172,0.13921789,105970.0,105960.0,0.27552274]
[1750406619477,0.0625,105970.0,105960.0,0.52074952]
[1750406620081,0.0621,105970.0,105960.0,0.52074952]
[1750406620274,0.0625,105970.0,105960.0,1.07016952]
[1750406620476,0.0625,105970.0,105960.0,0.82494274]
[1750406620674,0.0625,105970.0,105960.0,0.45604952]
[1750406621076,0.0625,105970.0,105960.0,0.21082274]
[1750406621272,0.0625,105970.0,105960.0,0.22009051]
[1750406621481,0.0004,105970.0,105960.0,0.46531729]
[1750406621682,0.0004,105970.0,105960.0,0.49821729]
[1750406621877,0.0004,105970.0,105960.0,0.25299051]
[1750406622585,0.70172678,105980.0,105970.0,0.1887131]
[1750406622783,0.70203455,105980.0,105970.0,0.43393988]
[1750406623183,0.94726133,105980.0,105970.0,0.1887131]
[1750406623485,0.70203455,105980.0,105970.0,0.1887131]
[1750406623785,0.94726133,105980.0,105970.0,0.1887131]
[1750406624587,0.70203455,105980.0,105970.0,0.1887131]
[1750406624788,0.53203455,105980.0,105970.0,0.1887131]
[1750406624988,0.53203455,105980.0,105970.0,0.43393988]
[1750406625187,0.001,105980.0,105970.0,1.50055988]
[1750406625485,0.0014,105980.0,105970.0,1.65299988]
[1750406625690,0.001,105980.0,105970.0,1.65299988]
[1750406625890,0.0014,105980.0,105970.0,1.29219988]
[1750406626090,0.0014,105980.0,105970.0,1.29319988]
[1750406626989,0.0014,105980.0,105970.0,1.29519988]
[1750406628085,0.0014,105980.0,105970.0,0.52823988]
[1750406628285,0.0014,105980.0,105970.0,1.29591988]
[1750406629695,0.0014,105980.0,105970.0,0.52823988]
[1750406629994,0.0014,105980.0,105970.0,1.29551988]
[1750406634394,0.0014,105980.0,105970.0,1.66551988]
[1750406635188,0.0014,105980.0,105970.0,1.29551988]
[1750406635596,0.0014,105980.0,105970.0,1.0602931]
[1750406635796,0.0014,105980.0,105970.0,1.30551988]
[1750406637402,0.0014,105980.0,105970.0,0.53823988]
[1750406637604,0.0014,105980.0,105970.0,1.30667988]
[1750406637803,0.0014,105980.0,105970.0,1.63667988]
[1750406638209,0.001,105980.0,105970.0,1.63667988]
[1750406638406,0.0014,105980.0,105970.0,1.63667988]
[1750406638608,0.0014,105980.0,105970.0,1.99747988]
[1750406638807,0.0014,105980.0,105970.0,1.65739988]
[1750406639007,0.0014,105980.0,105970.0,2.01739988]
[1750406640115,0.0014,105980.0,105970.0,1.65739988]
[1750406640311,0.0014,105980.0,105970.0,1.71739988]
[1750406640504,0.0014,105980.0,105970.0,1.72739988]
[1750406640816,0.0014,105980.0,105970.0,2.02739988]
[1750406641313,0.0014,105980.0,105970.0,2.03739988]
[1750406643103,0.001,105980.0,105970.0,2.03739988]
[1750406643304,1e-07,105980.0,105970.0,2.03739988]
[1750406643501,1e-07,105980.0,105970.0,2.76604666]
[1750406643701,1e-07,105980.0,105970.0,2.52081988]
[1750406644108,1e-07,105980.0,105970.0,2.76604666]
[1750406644302,0.3658,106000.0,105990.0,0.1886774]
[1750406644506,0.3969,106000.0,105990.0,1.04782418]
[1750406644708,0.4271,106000.0,105990.0,0.9569174]
[1750406644907,0.6157596,106000.0,105990.0,1.20214418]
[1750406645111,0.1886774,105990.0,105980.0,0.43390938]
[1750406645304,0.4213,105990.0,105970.0,0.003]
[1750406645509,1.3384552,105980.0,105970.0,0.003]
[1750406645711,0.1887309,105960.0,105950.0,0.2831074]
[1750406645906,1.23267557,105960.0,105950.0,0.2831074]
[1750406646208,0.98744879,105960.0,105950.0,0.2831074]
[1750406646407,1.06273838,105960.0,105950.0,0.52833418]
[1750406646609,0.79871789,105960.0,105950.0,0.52833418]
[1750406646816,0.98744879,105960.0,105950.0,0.52833418]
[1750406647114,0.98744879,105960.0,105950.0,0.53133418]
[1750406647307,0.43791789,105960.0,105950.0,0.53133418]
[1750406647503,0.3608,105960.0,105950.0,0.53133418]
[1750406647915,0.3608,105960.0,105950.0,0.2861074]
[1750406648102,0.3608,105960.0,105950.0,0.53133418]
[1750406648308,0.5495309,105960.0,105950.0,0.53133418]
[1750406648508,0.5798309,105960.0,105950.0,0.53133418]
[1750406648916,0.6107309,105960.0,105950.0,0.53133418]
[1750406649116,0.6107309,105960.0,105950.0,0.2861074]
[1750406649411,0.3608,105960.0,105950.0,0.53433418]
[1750406649611,0.6451131,105970.0,105960.0,0.1887309]
[1750406649818,0.4238,105970.0,105960.0,1.07103768]
[1750406650018,0.4238,105970.0,105960.0,1.13583768]
[1750406650214,0.94880157,105980.0,105970.0,0.1887131]
[1750406650413,0.60700748,105980.0,105970.0,0.43393988]
[1750406650717,0.52988959,105980.0,105970.0,0.43393988]
[1750406650914,0.4554,105980.0,105970.0,0.43393988]
[1750406651109,0.4546,105980.0,105970.0,0.43393988]
[1750406651316,0.455,105980.0,105970.0,0.46653988]
[1750406651612,0.455,105980.0,105970.0,0.2213131]
[1750406651813,0.3612,105980.0,105970.0,0.46653988]
[1750406652018,0.41765059,105980.0,105970.0,0.49693988]
[1750406652219,0.41725059,105980.0,105970.0,0.2517131]
[1750406652422,0.41765059,105980.0,105970.0,0.49693988]
[1750406652615,0.41725059,105980.0,105970.0,0.49693988]
[1750406652920,0.42182466,105980.0,105970.0,0.49893988]
[1750406653217,0.42182466,105980.0,105970.0,0.49993988]
[1750406655922,0.42182466,105980.0,105970.0,0.52993988]
[1750406656623,0.42142466,105980.0,105970.0,0.52993988]
[1750406656824,0.41765059,105980.0,105970.0,0.52993988]
[1750406657117,0.05685059,105980.0,105970.0,0.89073988]
[1750406657418,0.05685059,105980.0,105970.0,1.20073988]
[1750406657618,0.05685059,105980.0,105970.0,0.86073988]
[1750406657929,0.0004,105980.0,105970.0,1.20073988]
[1750406658223,0.05645059,105990.0,105980.0,0.1886953]
[1750406658414,0.68304598,105990.0,105980.0,0.1886953]
[1750406658614,0.66773009,105990.0,105980.0,0.8231353]
[1750406658823,0.6116775,105990.0,105980.0,0.8231353]
[1750406659023,0.6116775,105990.0,105980.0,0.8234553]
[1750406659223,0.66813046,105990.0,105980.0,1.06868208]
[1750406659619,0.6116775,105990.0,105980.0,0.43392208]
[1750406659825,0.6116775,105990.0,105980.0,1.06876208]
[1750406660726,0.6116775,105990.0,105980.0,0.43392208]
[1750406661026,0.6116775,105990.0,105980.0,1.06860208]
[1750406661216,0.6116775,105990.0,105980.0,0.8233753]
[1750406661417,0.6116775,105990.0,105980.0,1.06860208]
[1750406661620,0.6116775,105990.0,105980.0,0.8233753]
[1750406661823,0.6116775,105990.0,105980.0,0.8229753]
[1750406662026,0.68879539,105990.0,105980.0,0.43392208]
[1750406662224,0.76408498,105990.0,105980.0,0.1886953]
[1750406663220,1.00931176,105990.0,105980.0,0.1886953]
[1750406663615,0.93402217,105990.0,105980.0,0.1886953]
[1750406664027,1.07553787,105990.0,105980.0,0.1886953]
[1750406664319,0.40736169,105980.0,105970.0,0.2358799]
[1750406664521,1.18296375,105980.0,105970.0,0.1887031]
[1750406664717,0.1887131,105970.0,105960.0,0.87018698]
[1750406664914,0.66837444,105970.0,105960.0,0.82300518]
[1750406665122,1.00953305,105970.0,105960.0,0.5305966]
[1750406665422,0.76430627,105970.0,105960.0,0.5305966]
[1750406665627,0.76430627,105970.0,105960.0,0.2358966]
[1750406666025,0.57559317,105970.0,105960.0,0.48112338]
[1750406666226,0.68718838,105970.0,105960.0,0.48112338]
[1750406666424,0.68718838,105970.0,105960.0,0.48712338]
[1750406666931,0.6119131,105970.0,105960.0,0.48712338]
[1750406667114,0.66066099,105970.0,105960.0,0.73235016]
[1750406667315,0.5817131,105970.0,105960.0,0.52032338]
[1750406667528,0.393,105970.0,105960.0,0.52032338]
[1750406667730,0.393,105970.0,105960.0,0.76555016]
[1750406667934,0.3608,105970.0,105960.0,0.76555016]
[1750406668132,0.05684647,105970.0,105960.0,0.83165016]
[1750406668525,0.05684647,105970.0,105960.0,1.16165016]
[1750406668732,0.42142054,105980.0,105970.0,0.1887131]
[1750406669028,0.41804647,105980.0,105970.0,0.82013988]
[1750406669328,0.41764647,105980.0,105970.0,0.82013988]
[1750406670025,0.37546517,105980.0,105970.0,1.45153988]
[1750406670223,0.33489047,105980.0,105970.0,1.45153988]
[1750406670532,0.05684647,105980.0,105970.0,1.81233988]
[1750406670730,7e-08,105980.0,105970.0,1.81233988]
[1750406671424,7e-08,105980.0,105970.0,1.85010691]
[1750406673129,7e-08,105980.0,105970.0,2.01658691]
[1750406673723,7e-08,105980.0,105970.0,2.31128691]
[1750406673926,7e-08,105990.0,105980.0,0.1886953]
[1750406674118,0.07911218,106000.0,105990.0,0.1886775]
[1750406674524,0.07911218,106000.0,105990.0,0.43390428]
[1750406674928,0.07951218,106000.0,105990.0,0.43390428]
[1750406675937,0.07951218,106000.0,105990.0,0.47166733]
[1750406676233,0.08051218,106000.0,105990.0,0.47166733]
[1750406676834,0.08051218,106000.0,105990.0,0.22644055]
[1750406677034,0.08051218,106000.0,105990.0,0.47166733]
[1750406678234,0.08468625,106000.0,105990.0,0.47166733]
[1750406679237,0.08051218,106000.0,105990.0,0.47166733]
[1750406679535,0.08051218,106000.0,105990.0,1.39536733]
[1750406680138,0.0008,106010.0,106000.0,0.1886597]
[1750406680330,0.0008,106010.0,106000.0,0.58722275]
[1750406680531,0.4412,106020.0,106010.0,0.1886419]
[1750406680727,0.51831789,106020.0,106010.0,0.1886419]
[1750406681337,0.96891789,106020.0,106010.0,0.43386868]
[1750406681637,0.5008,106020.0,106010.0,0.43386868]
[1750406681840,0.3694015,106020.0,106010.0,0.79466868]
[1750406682028,0.3686015,106020.0,106010.0,1.1524247]
[1750406682338,0.3690015,106020.0,106010.0,1.4598647]
[1750406682642,0.0004,106020.0,106010.0,1.21763792]
[1750406682841,0.0004,106020.0,106010.0,1.4628647]
[1750406683228,0.0004,106020.0,106010.0,1.4668647]
[1750406685545,0.0004,106020.0,106010.0,1.7615647]
[1750406686944,0.0004,106020.0,106010.0,1.1341247]
[1750406689343,0.00457407,106020.0,106010.0,1.1341247]
[1750406689547,0.00457407,106020.0,106010.0,1.4541247]
[1750406689744,0.00457407,106020.0,106010.0,1.20889792]
[1750406690046,0.00457407,106020.0,106010.0,1.4541247]
[1750406690543,0.00457407,106020.0,106010.0,1.4873247]
[1750406691445,0.00457407,106020.0,106010.0,1.4843247]
[1750406691644,0.00417407,106020.0,106010.0,1.4843247]
[1750406691846,0.00457407,106020.0,106010.0,1.5145247]
[1750406692046,0.00457407,106020.0,106010.0,1.5105247]
[1750406692250,0.00457407,106020.0,106010.0,0.94529792]
[1750406692446,0.00457407,106020.0,106010.0,0.9276247]
[1750406693550,0.0004,106020.0,106010.0,0.9276247]
[1750406693751,0.0004,106020.0,106010.0,0.68239792]
[1750406694049,0.0004,106020.0,106010.0,0.9276247]
[1750406694551,0.00457407,106020.0,106010.0,0.9276247]
[1750406695547,0.00457407,106020.0,106010.0,0.32159792]
[1750406695759,0.36537407,106020.0,106010.0,0.52906868]
[1750406696352,0.55399817,106020.0,106010.0,0.52906868]
[1750406696850,0.58669817,106020.0,106010.0,0.52906868]
[1750406697344,0.58669817,106020.0,106010.0,0.50342648]
[1750406697545,0.61889817,106020.0,106010.0,0.2204419]
[1750406697745,0.61889817,106020.0,106010.0,0.50342648]
[1750406698251,0.61889817,106020.0,106010.0,0.53532648]
[1750406698546,0.61889817,106020.0,106010.0,0.50342648]
[1750406699250,0.61889817,106020.0,106010.0,0.2581997]
[1750406699445,0.61889817,106020.0,106010.0,0.50342648]
[1750406700546,1.24381817,106020.0,106010.0,0.50342648]
[1750406700751,1.24381817,106020.0,106010.0,0.46566868]
[1750406701148,1.24381817,106020.0,106010.0,0.2204419]
[1750406701949,1.24381817,106020.0,106010.0,0.46566868]
[1750406702958,0.0008,106030.0,106020.0,0.1886241]
[1750406703150,0.0026,106040.0,106030.0,0.1886063]
[1750406703151,0.001,106040.0,106030.0,0.1886063]
[1750406703345,0.001,106040.0,106030.0,1.59621646]
[1750406703552,0.001,106040.0,106030.0,0.65105646]
[1750406703749,0.001,106040.0,106030.0,1.87152324]
[1750406704062,1e-07,106040.0,106030.0,2.06013924]
[1750406704354,1.3384951,106070.0,106060.0,0.1885529]
[1750406704554,1.71203977,106070.0,106060.0,0.1885529]
[1750406705058,0.001,106070.0,106060.0,0.1885529]
[1750406705257,0.0014,106070.0,106060.0,0.49967968]
[1750406705559,0.001,106070.0,106060.0,0.2544529]
[1750406705747,0.0014,106070.0,106060.0,0.2574529]
[1750406705953,0.0014,106070.0,106060.0,0.50267968]
[1750406706154,0.0014,106070.0,106060.0,0.50667968]
[1750406706359,0.0014,106070.0,106060.0,0.2614529]
[1750406706855,0.0014,106070.0,106060.0,0.50667968]
[1750406707257,0.0014,106070.0,106060.0,0.2923529]
[1750406707451,0.0014,106070.0,106060.0,0.53757968]
[1750406708157,0.0014,106070.0,106060.0,0.2923529]
[1750406708344,0.0014,106070.0,106060.0,0.53757968]
[1750406709155,0.0014,106070.0,106060.0,0.2923529]
[1750406709652,0.0014,106070.0,106060.0,0.53757968]
[1750406710650,0.001,106070.0,106060.0,0.89757968]
[1750406710953,0.0014,106070.0,106060.0,0.84757968]
[1750406711158,0.0014,106070.0,106060.0,0.2923529]
[1750406711359,0.0014,106070.0,106060.0,0.88757968]
[1750406712158,0.0014,106070.0,106060.0,0.6423529]
[1750406712360,0.0014,106070.0,106060.0,0.53757968]
[1750406712658,0.0014,106070.0,106060.0,0.2923529]
[1750406712858,0.0014,106070.0,106060.0,0.53757968]
[1750406713446,0.0014,106070.0,106060.0,0.2923529]
[1750406713652,0.24662678,106070.0,106060.0,0.2923529]
[1750406715354,0.0014,106070.0,106060.0,0.2923529]
[1750406715755,0.0014,106070.0,106060.0,0.53757968]
[1750406715960,0.0014,106070.0,106060.0,0.2923529]
[1750406716561,0.0014,106070.0,106060.0,0.53757968]
[1750406716758,0.0014,106070.0,106060.0,0.2923529]
[1750406717065,0.0014,106070.0,106060.0,0.53757968]
[1750406719168,0.001,106070.0,106060.0,0.87757968]
[1750406719467,0.0014,106070.0,106060.0,0.87757968]
[1750406720369,0.0014,106070.0,106060.0,0.53757968]
[1750406721266,0.0014,106070.0,106060.0,0.83227968]
[1750406721462,0.0014,106070.0,106060.0,1.16227968]
[1750406721966,0.0014,106070.0,106060.0,0.9170529]
[1750406722362,0.0014,106070.0,106060.0,1.16227968]
[1750406722866,0.0014,106070.0,106060.0,0.83227968]
[1750406723058,0.001,106070.0,106060.0,1.15227968]
[1750406723258,0.001,106070.0,106060.0,1.54240583]
[1750406723476,0.0014,106070.0,106060.0,1.54240583]
[1750406724071,0.0014,106070.0,106060.0,1.53940583]
[1750406724475,0.0014,106070.0,106060.0,1.29417905]
[1750406724770,0.0014,106070.0,106060.0,1.53940583]
[1750406725172,0.0014,106070.0,106060.0,1.29417905]
[1750406725374,0.0014,106070.0,106060.0,1.53940583]
[1750406725963,0.00557407,106070.0,106060.0,1.53940583]
[1750406727072,0.0014,106070.0,106060.0,1.53940583]
[1750406727272,0.0014,106070.0,106060.0,2.32340583]
[1750406727675,0.0014,106070.0,106060.0,2.07817905]
[1750406727873,0.0014,106070.0,106060.0,2.32340583]
[1750406728679,0.0014,106070.0,106060.0,2.00340583]
[1750406728882,0.0014,106070.0,106060.0,2.36340583]
[1750406730590,0.001,106070.0,106060.0,2.36340583]
[1750406730773,0.0014,106070.0,106060.0,2.36340583]